bitfinex-derivatives/quotes_BTCF0:USTF0_20250722
["timestamp","ask_amount","ask_price","bid_price","bid_amount"]
[1753202464320,1.17643198,118990.0,118980.0,0.06363]
[1753202464518,1.17643198,118990.0,118980.0,0.12961174]
[1753202464816,1.7209682,118990.0,118980.0,0.006]
[1753202465419,0.08091,118980.0,118960.0,0.2959809]
[1753202465620,1.30178816,118970.0,118960.0,0.4244609]
[1753202465818,1.38269816,118970.0,118960.0,0.4333209]
[1753202466020,0.79893816,118970.0,118960.0,0.4333209]
[1753202466226,1.38269816,118970.0,118960.0,0.4333209]
[1753202466525,1.38269816,118970.0,118960.0,0.391313]
[1753202467330,1.38269816,118970.0,118960.0,0.394313]
[1753202467523,0.1680366,118960.0,118950.0,0.05763]
[1753202467726,1.99662802,118960.0,118950.0,0.12555561]
[1753202468026,2.12258358,118960.0,118950.0,0.12555561]
[1753202468221,2.12258358,118960.0,118930.0,0.05763]
[1753202468222,0.05874,118940.0,118930.0,0.05763]
[1753202468417,0.63267566,118940.0,118930.0,0.18285]
[1753202468621,0.63267566,118940.0,118930.0,0.54365]
[1753202468826,0.84277386,118940.0,118930.0,0.7537349]
[1753202469026,0.78030386,118940.0,118930.0,0.7692449]
[1753202469721,0.84277386,118940.0,118930.0,0.7537349]
[1753202470223,0.84277386,118940.0,118930.0,0.7557349]
[1753202470529,0.88479306,118940.0,118930.0,0.7987529]
[1753202470727,0.88479306,118940.0,118930.0,0.3539171]
[1753202471021,0.88479306,118940.0,118930.0,0.06063]
[1753202471022,1.66437316,118940.0,118930.0,0.06063]
[1753202471222,1.66437316,118940.0,118930.0,0.003]
[1753202471629,1.66437316,118940.0,118930.0,0.171079]
[1753202472226,1.66437316,118940.0,118930.0,0.229059]
[1753202472930,1.66437316,118940.0,118930.0,0.29574917]
[1753202473124,1.66537316,118940.0,118930.0,0.31833059]
[1753202475323,1.66537316,118940.0,118930.0,0.09027159]
[1753202475524,0.168079,118930.0,118920.0,0.32273521]
[1753202475825,1.58173476,118930.0,118920.0,0.36475841]
[1753202476024,1.58173476,118930.0,118920.0,0.48119841]
[1753202476225,1.58173476,118930.0,118920.0,0.48997841]
[1753202476725,1.58173476,118930.0,118920.0,0.49197841]
[1753202477530,1.58173476,118930.0,118920.0,0.55902528]
[1753202478126,1.70730266,118930.0,118920.0,0.55902528]
[1753202478527,1.70730266,118930.0,118920.0,0.55802528]
[1753202478730,1.70730266,118930.0,118920.0,0.55702528]
[1753202479627,1.64483266,118930.0,118920.0,0.57253528]
[1753202479827,0.73968466,118930.0,118920.0,1.85773528]
[1753202480128,0.80215466,118930.0,118920.0,1.43750066]
[1753202480332,0.80215466,118930.0,118920.0,1.09928149]
[1753202480525,1.22093476,118930.0,118920.0,0.25955039]
[1753202480833,1.74743466,118930.0,118920.0,0.1902577]
[1753202481130,2.71843432,118930.0,118920.0,0.1496077]
[1753202481325,2.71843432,118930.0,118920.0,0.0896277]
[1753202481528,2.71843432,118930.0,118920.0,0.19067393]
[1753202482121,2.71843432,118930.0,118920.0,0.08256083]
[1753202482326,2.29169866,118930.0,118920.0,0.08256083]
[1753202482526,2.29169866,118930.0,118920.0,0.05998]
[1753202482726,2.29169866,118930.0,118920.0,0.2280732]
[1753202486032,2.29169866,118930.0,118920.0,0.29693252]
[1753202486233,2.29169866,118930.0,118920.0,0.12883932]
[1753202486735,2.29169866,118930.0,118920.0,0.23695242]
[1753202487234,2.29169866,118930.0,118920.0,0.1680931]
[1753202487428,2.29169866,118930.0,118920.0,0.05998]
[1753202488131,0.2488432,118920.0,118910.0,0.2991873]
[1753202488324,2.02584013,118920.0,118910.0,0.10063]
[1753202488529,2.15133296,118920.0,118910.0,0.05998]
[1753202488731,2.15133296,118920.0,118910.0,0.2280873]
[1753202488928,0.1681073,118910.0,118900.0,0.26048]
[1753202489132,0.2191756,118890.0,118880.0,0.0001]
[1753202489341,0.11888,118880.0,118870.0,0.0083954]
[1753202489637,0.3755039,118870.0,118860.0,0.05998]
[1753202489836,2.16653966,118870.0,118860.0,0.05998]
[1753202490138,2.29336055,118870.0,118860.0,0.228158]
[1753202491038,2.12519665,118870.0,118860.0,0.228158]
[1753202491237,2.36867899,118870.0,118860.0,0.228158]
[1753202491539,1.80107595,118870.0,118860.0,0.228158]
[1753202491839,1.63291205,118870.0,118860.0,0.228158]
[1753202492029,2.21943205,118870.0,118860.0,0.236938]
[1753202492338,1.27211205,118870.0,118860.0,0.371978]
[1753202493234,1.44027595,118870.0,118860.0,0.228158]
[1753202493434,0.64734,118860.0,118850.0,0.3921342]
[1753202493742,1.5681742,118860.0,118850.0,0.4560742]
[1753202494738,1.5681742,118860.0,118850.0,0.2291722]
[1753202494938,1.5681742,118860.0,118850.0,0.3739922]
[1753202495938,1.5681742,118860.0,118850.0,0.7347922]
[1753202496135,0.52473,118860.0,118850.0,1.1047922]
[1753202496338,0.52473,118860.0,118850.0,0.76656817]
[1753202496535,0.52473,118860.0,118850.0,1.12736817]
[1753202496739,0.4488,118860.0,118850.0,1.12736817]
[1753202496935,0.0002,118870.0,118860.0,0.311998]
[1753202497134,0.01688807,118890.0,118880.0,0.3719497]
[1753202497443,0.01688807,118890.0,118880.0,2.5433238]
[1753202497641,0.01688807,118890.0,118880.0,2.7115558]
[1753202497942,0.18245551,118920.0,118910.0,0.3079673]
[1753202498138,0.53876561,118920.0,118910.0,1.3215073]
[1753202498335,1.1678093,118920.0,118910.0,1.3215073]
[1753202498539,0.7079952,118920.0,118910.0,1.3215073]
[1753202499042,0.8760883,118920.0,118910.0,1.3215073]
[1753202499342,1.2100493,118920.0,118910.0,1.3215073]
[1753202499543,0.2892151,118920.0,118910.0,1.7015073]
[1753202499737,0.01735551,118920.0,118910.0,1.6915073]
[1753202501346,0.02035551,118920.0,118910.0,1.6999079]
[1753202502453,0.02435551,118920.0,118910.0,1.6999079]
[1753202503243,0.02135551,118920.0,118910.0,1.6999079]
[1753202503555,0.02235551,118920.0,118910.0,2.201962]
[1753202503747,0.04433,118940.0,118930.0,0.251389]
[1753202504055,0.04433,118940.0,118930.0,1.699759]
[1753202504353,0.2220449,118940.0,118930.0,0.741599]
[1753202504550,0.3135249,118940.0,118930.0,0.741599]
[1753202504856,0.876959,118940.0,118930.0,1.329679]
[1753202505056,0.876959,118940.0,118930.0,0.380799]
[1753202505254,1.2957391,118940.0,118930.0,0.968839]
[1753202505456,1.2957391,118940.0,118930.0,0.819199]
[1753202505758,1.2957391,118940.0,118930.0,0.870879]
[1753202505958,1.2957391,118940.0,118930.0,0.902509]
[1753202506151,1.2987391,118940.0,118930.0,1.329639]
[1753202506455,0.796685,118940.0,118930.0,1.329639]
[1753202506651,0.5083501,118940.0,118930.0,1.329639]
[1753202506857,0.005,118940.0,118930.0,1.329639]
[1753202507055,0.005,118940.0,118930.0,2.1416931]
[1753202507257,0.005,118940.0,118930.0,1.329639]
[1753202507555,0.005,118940.0,118930.0,1.669639]
[1753202508060,0.1730649,118940.0,118930.0,1.669479]
[1753202508558,0.005,118940.0,118930.0,1.669479]
[1753202509353,0.005,118940.0,118930.0,1.6880368]
[1753202509560,0.1730649,118940.0,118930.0,1.6880368]
[1753202509760,0.1730649,118940.0,118930.0,1.6580368]
[1753202510163,0.1730649,118940.0,118930.0,1.6578768]
[1753202510355,0.2270449,118940.0,118930.0,1.6578768]
[1753202511163,0.881959,118940.0,118930.0,1.3495168]
[1753202511457,1.3007391,118940.0,118930.0,0.9887168]
[1753202511665,1.3007391,118940.0,118930.0,0.9886368]
[1753202512158,1.3007391,118940.0,118930.0,0.7225978]
[1753202512360,1.3007391,118940.0,118930.0,0.6801278]
[1753202512560,1.36083725,118940.0,118930.0,0.8482068]
[1753202513164,1.36083725,118940.0,118930.0,0.8906768]
[1753202513765,1.36083725,118940.0,118930.0,0.9709368]
[1753202513966,1.36083725,118940.0,118930.0,0.9886368]
[1753202514168,1.3007391,118940.0,118930.0,0.9886368]
[1753202514467,1.3007391,118940.0,118890.0,0.3808555]
[1753202514468,0.3749614,118900.0,118890.0,0.3808555]
[1753202514672,1.2957956,118900.0,118890.0,0.7416555]
[1753202514967,0.5053501,118900.0,118890.0,1.6515755]
[1753202515159,0.7076935,118910.0,118890.0,1.6515755]
[1753202515160,0.3243229,118910.0,118900.0,0.2198014]
[1753202515362,0.742903,118910.0,118900.0,0.7416414]
[1753202515765,0.775493,118910.0,118900.0,0.7416414]
[1753202515960,0.775493,118910.0,118900.0,1.3314014]
[1753202516767,1.3798471,118910.0,118900.0,0.57352]
[1753202516963,1.3798471,118910.0,118900.0,0.3608]
[1753202517163,0.3749614,118900.0,118890.0,0.7836868]
[1753202517363,1.2957956,118900.0,118890.0,1.0124468]
[1753202517563,1.2957956,118900.0,118890.0,1.3732468]
[1753202517763,1.2957956,118900.0,118890.0,0.9704133]
[1753202519065,1.2957956,118900.0,118890.0,1.3312133]
[1753202519568,1.2344156,118900.0,118890.0,1.3312133]
[1753202519769,1.2364156,118900.0,118890.0,0.7416533]
[1753202519969,0.7343615,118900.0,118890.0,1.3307733]
[1753202520165,1.2364156,118900.0,118890.0,0.9699733]
[1753202520372,1.2977956,118900.0,118890.0,0.21272]
[1753202520668,1.2977956,118900.0,118890.0,0.80184]
[1753202520865,0.7957415,118900.0,118890.0,0.9036456]
[1753202521060,1.2977956,118900.0,118890.0,0.9699756]
[1753202523161,1.2977956,118900.0,118890.0,0.80212]
[1753202523367,0.20684,118870.0,118850.0,0.04526897]
[1753202523571,0.2513522,118850.0,118840.0,0.27067747]
[1753202523765,1.60385227,118850.0,118840.0,0.10247117]
[1753202523966,1.73009412,118850.0,118840.0,0.69395117]
[1753202524265,1.73009412,118850.0,118840.0,1.00258747]
[1753202524663,1.73009412,118850.0,118840.0,0.78699527]
[1753202524664,0.05398,118850.0,118840.0,0.78699527]
[1753202524961,1.1357721,118860.0,118850.0,0.3809122]
[1753202525165,1.50153807,118860.0,118850.0,0.3809122]
[1753202525371,1.62793551,118860.0,118850.0,0.3809122]
[1753202525869,1.68931551,118860.0,118850.0,0.3809122]
[1753202526572,1.69131551,118860.0,118850.0,0.3809122]
[1753202526969,0.002,118860.0,118850.0,0.3809122]
[1753202527167,0.002,118860.0,118850.0,0.75618117]
[1753202527972,0.6722321,118860.0,118850.0,0.42618117]
[1753202528181,1.1375721,118860.0,118850.0,0.42618117]
[1753202528471,1.61499807,118860.0,118850.0,1.01802117]
[1753202528674,1.61499807,118860.0,118850.0,0.42618117]
[1753202528873,1.2490321,118860.0,118850.0,0.9727522]
[1753202529069,1.2490321,118860.0,118850.0,0.07229]
[1753202529265,1.61499807,118860.0,118850.0,0.65488]
[1753202529464,1.61299807,118860.0,118850.0,0.65488]
[1753202529670,1.61299807,118860.0,118850.0,0.06408]
[1753202529870,1.61299807,118860.0,118850.0,0.65676]
[1753202530068,1.61299807,118860.0,118850.0,0.59368]
[1753202530269,1.73939126,118860.0,118850.0,0.59268]
[1753202530672,1.73939126,118860.0,118850.0,0.1681922]
[1753202530869,1.73939126,118860.0,118850.0,0.7597522]
[1753202531671,1.73939126,118860.0,118850.0,0.8238922]
[1753202531872,1.74139126,118860.0,118850.0,0.8238922]
[1753202532072,1.74139126,118860.0,118850.0,0.6557]
[1753202532277,1.74139126,118860.0,118850.0,0.59156]
[1753202532776,1.74139126,118860.0,118850.0,0.7597521]
[1753202533279,1.74139126,118860.0,118850.0,0.8238921]
[1753202534879,1.74139126,118860.0,118850.0,0.2323321]
[1753202535279,1.74139126,118860.0,118850.0,0.1681921]
[1753202535578,0.3915022,118850.0,118840.0,0.9598883]
[1753202535778,1.62032227,118850.0,118840.0,0.9598883]
[1753202536178,1.62032227,118850.0,118840.0,0.9178369]
[1753202537378,1.62032227,118850.0,118840.0,0.9619369]
[1753202537680,1.62032227,118850.0,118840.0,1.0608169]
[1753202539878,1.62891337,118850.0,118840.0,1.0608169]
[1753202540079,1.62032227,118850.0,118840.0,1.0608169]
[1753202540678,1.62232227,118850.0,118840.0,1.0608169]
[1753202541385,1.62232227,118850.0,118840.0,0.9767148]
[1753202541585,2.25242146,118850.0,118840.0,0.65534]
[1753202541884,2.25242146,118850.0,118840.0,0.5912]
[1753202542086,2.26062245,118850.0,118840.0,0.5912]
[1753202542278,0.3718563,118840.0,118830.0,0.9992432]
[1753202542484,1.62033637,118840.0,118830.0,0.9509532]
[1753202542784,1.62033637,118840.0,118830.0,0.8649232]
[1753202543786,1.62033637,118840.0,118830.0,1.0181032]
[1753202545584,1.2543704,118840.0,118830.0,0.74069]
[1753202545788,1.74668629,118840.0,118830.0,0.9089105]
[1753202545984,1.74668629,118840.0,118830.0,0.8228805]
[1753202546385,1.82184921,118840.0,118830.0,0.9760605]
[1753202546585,1.82184921,118840.0,118830.0,0.8330805]
[1753202546586,1.74668629,118840.0,118830.0,0.8330805]
[1753202547284,1.38072032,118840.0,118830.0,0.8330805]
[1753202547480,1.74668629,118840.0,118830.0,0.8330805]
[1753202547881,1.74668629,118840.0,118830.0,0.2425605]
[1753202548087,1.74668629,118840.0,118830.0,0.8332805]
[1753202548590,1.74668629,118840.0,118830.0,0.59072]
[1753202548792,1.74668629,118840.0,118830.0,0.7589405]
[1753202549480,1.74668629,118840.0,118830.0,0.8230805]
[1753202549880,1.58047999,118840.0,118820.0,0.15173922]
[1753202550092,1.68051521,118830.0,118820.0,1.10275022]
[1753202550992,1.31971521,118830.0,118820.0,1.10275022]
[1753202551392,1.68051521,118830.0,118820.0,1.10275022]
[1753202552495,1.62035047,118830.0,118820.0,1.10275022]
[1753202552695,1.11829637,118830.0,118820.0,1.10275022]
[1753202552896,1.62035047,118830.0,118820.0,0.51219022]
[1753202553092,1.62035047,118830.0,118820.0,1.10379022]
[1753202554491,1.55313047,118830.0,118820.0,0.51219022]
[1753202554696,1.1460231,118840.0,118830.0,0.3855404]
[1753202554697,0.09239,118840.0,118830.0,0.3855404]
[1753202554894,0.6410421,118850.0,118840.0,0.3855263]
[1753202555090,1.1428962,118850.0,118840.0,0.9772063]
[1753202555296,1.1428962,118850.0,118840.0,0.3855263]
[1753202555490,1.1428962,118850.0,118840.0,0.9771663]
[1753202555797,1.2101162,118850.0,118840.0,0.9771663]
[1753202555996,1.2101162,118850.0,118840.0,0.9771263]
[1753202557094,0.6139041,118850.0,118840.0,1.2871263]
[1753202557298,1.1601673,118860.0,118850.0,0.2122921]
[1753202557499,1.0998516,118860.0,118850.0,0.3855121]
[1753202557702,1.46581757,118860.0,118850.0,1.3067921]
[1753202557906,0.3608,118860.0,118850.0,1.3067921]
[1753202558202,0.6410138,118870.0,118860.0,0.3854979]
[1753202558508,1.34067007,118870.0,118860.0,1.3069379]
[1753202558798,1.28326937,118880.0,118870.0,0.2517638]
[1753202558995,1.5888706,118880.0,118870.0,0.3863938]
[1753202559302,1.71466186,118880.0,118870.0,0.3863938]
[1753202559597,1.79969186,118880.0,118870.0,0.3863938]
[1753202559797,0.65241123,118880.0,118870.0,0.7463938]
[1753202560196,0.71257597,118880.0,118870.0,0.3863938]
[1753202560396,0.50712474,118880.0,118870.0,0.7463938]
[1753202560695,0.73135474,118890.0,118880.0,0.1681497]
[1753202560896,1.18215071,118890.0,118880.0,1.3078397]
[1753202561091,0.38352885,118890.0,118880.0,1.3078397]
[1753202561394,0.2569582,118890.0,118880.0,1.3078397]
[1753202561592,0.2569582,118890.0,118880.0,1.37589565]
[1753202561904,0.2609582,118890.0,118880.0,1.33589565]
[1753202562200,0.3164582,118890.0,118880.0,1.33589565]
[1753202562400,0.3224582,118890.0,118880.0,1.33589565]
[1753202562604,0.3224582,118890.0,118880.0,1.11589565]
[1753202562994,0.2669582,118890.0,118880.0,1.39589565]
[1753202563900,0.2669582,118890.0,118880.0,1.12589565]
[1753202564097,0.2659582,118890.0,118880.0,1.12589565]
[1753202564297,0.4794237,118890.0,118880.0,1.12589565]
[1753202565001,0.4774237,118890.0,118880.0,1.12589565]
[1753202565302,0.5080037,118890.0,118880.0,1.12589565]
[1753202565608,0.5386637,118890.0,118880.0,1.12589565]
[1753202565802,0.47849896,118890.0,118880.0,1.12589565]
[1753202566109,0.31036346,118890.0,118880.0,1.12589565]
[1753202566404,0.25929346,118890.0,118880.0,1.12589565]
[1753202566804,0.42742896,118890.0,118880.0,1.12589565]
[1753202567210,0.96014306,118890.0,118880.0,1.12589565]
[1753202567506,0.47849896,118890.0,118880.0,1.12589565]
[1753202568308,0.31036346,118890.0,118880.0,1.12589565]
[1753202569007,0.47849896,118890.0,118880.0,1.12589565]
[1753202569998,0.31036346,118890.0,118880.0,1.12589565]
[1753202570508,0.31036346,118890.0,118880.0,1.13423165]
[1753202570807,0.31036346,118890.0,118880.0,1.37423165]
[1753202570999,0.20379346,118890.0,118880.0,1.37423165]
[1753202571997,0.27978346,118890.0,118880.0,1.11589565]
[1753202573008,0.44791896,118890.0,118880.0,1.11589565]
[1753202573306,1.81596903,118890.0,118880.0,1.07796565]
[1753202573501,1.81596903,118890.0,118880.0,1.14635565]
[1753202573701,0.24912346,118890.0,118880.0,1.14635565]
[1753202573906,0.20379346,118890.0,118880.0,1.14635565]
[1753202574307,0.20379346,118890.0,118880.0,1.41635565]
[1753202574606,0.20379346,118890.0,118880.0,1.15635565]
[1753202575003,0.24912346,118890.0,118880.0,1.15635565]
[1753202576506,0.24812346,118890.0,118880.0,1.15635565]
[1753202577306,1.02375306,118890.0,118880.0,1.15595565]
[1753202577506,1.08820306,118890.0,118880.0,1.15595565]
[1753202577698,1.08420306,118890.0,118880.0,1.15595565]
[1753202577904,1.08720306,118890.0,118880.0,0.56443565]
[1753202578210,1.81396903,118890.0,118880.0,1.04563565]
[1753202578611,1.45316903,118890.0,118880.0,1.04563565]
[1753202580607,0.78297943,118890.0,118880.0,1.35563565]
[1753202580808,0.185,118890.0,118880.0,2.21848975]
[1753202581001,0.005,118890.0,118880.0,2.21848975]
[1753202581313,0.02295294,118910.0,118900.0,0.2421213]
[1753202581501,0.02295294,118910.0,118900.0,1.75626072]
[1753202581700,0.02295294,118910.0,118900.0,1.42240662]
[1753202581915,0.04336294,118910.0,118900.0,1.42240662]
[1753202582310,0.04336294,118910.0,118900.0,1.78320662]
[1753202582513,0.02241,118910.0,118900.0,2.28526072]
[1753202582710,0.09763855,118910.0,118900.0,2.28526072]
[1753202582906,0.07722855,118910.0,118900.0,2.28526072]
[1753202584911,0.14304514,118920.0,118910.0,0.3407872]
[1753202584912,0.10531998,118920.0,118910.0,0.3407872]
[1753202585107,0.10531998,118930.0,118920.0,0.1680931]
[1753202585301,0.17105998,118930.0,118920.0,1.2711731]
[1753202585504,0.10531998,118930.0,118920.0,2.1340272]
[1753202585703,0.10531998,118930.0,118920.0,2.3022032]
[1753202585908,0.17105998,118940.0,118930.0,0.168079]
[1753202586214,0.17105998,118940.0,118930.0,1.4483131]
[1753202586807,0.17105998,118940.0,118930.0,1.4453131]
[1753202587313,0.17105998,118940.0,118930.0,1.8061131]
[1753202587519,0.06574,118940.0,118930.0,1.8061131]
[1753202587707,0.11548998,118950.0,118940.0,0.2782849]
[1753202587918,0.44187597,118950.0,118940.0,1.9462941]
[1753202588102,0.44187597,118950.0,118940.0,1.749559]
[1753202588412,0.44187597,118950.0,118940.0,1.81686196]
[1753202588611,0.47253597,118950.0,118940.0,1.33543786]
[1753202588912,0.53883597,118950.0,118940.0,1.33543786]
[1753202589302,0.47253597,118950.0,118940.0,1.33543786]
[1753202590509,0.53883597,118950.0,118940.0,1.33543786]
[1753202590712,0.53883597,118950.0,118940.0,0.40467786]
[1753202590909,0.47253597,118950.0,118940.0,1.32495786]
[1753202591109,0.06574,118950.0,118940.0,2.12357196]
[1753202591411,0.12590651,118950.0,118940.0,2.12357196]
[1753202592110,0.12590651,118950.0,118940.0,2.12157196]
[1753202592306,0.4271,118960.0,118950.0,0.1680508]
[1753202592307,0.45172651,118960.0,118950.0,0.1680508]
[1753202592504,0.43526597,118960.0,118950.0,1.1792349]
[1753202592705,0.60330257,118960.0,118950.0,0.9370208]
[1753202592915,0.44540597,118960.0,118950.0,1.2670208]
[1753202593110,0.64392257,118960.0,118950.0,0.3461208]
[1753202593317,0.75286257,118960.0,118950.0,1.3159608]
[1753202593614,0.75286257,118960.0,118950.0,1.3180008]
[1753202594213,1.2497507,118960.0,118950.0,0.9043108]
[1753202594514,1.61571667,118960.0,118950.0,0.7604108]
[1753202594714,1.61671667,118960.0,118950.0,0.7604108]
[1753202595213,1.61671667,118960.0,118950.0,0.7604107]
[1753202597615,1.80327866,118960.0,118950.0,0.7600907]
[1753202599014,2.39311866,118960.0,118950.0,0.1700507]
[1753202600712,1.30122456,118960.0,118950.0,0.2809507]
[1753202600909,1.30122456,118960.0,118950.0,0.3156807]
[1753202601115,1.13318796,118960.0,118950.0,0.3156807]
[1753202601418,0.83768597,118960.0,118950.0,1.2112348]
[1753202601713,0.83768597,118960.0,118950.0,1.2987007]
[1753202601913,0.83768597,118960.0,118950.0,1.2976407]
[1753202602109,0.90398597,118960.0,118950.0,0.9376407]
[1753202602312,0.90398597,118960.0,118950.0,1.2976407]
[1753202602815,0.90398597,118960.0,118950.0,1.2987007]
[1753202602816,0.83768597,118960.0,118950.0,1.2987007]
[1753202603119,0.47688597,118960.0,118950.0,1.2987007]
[1753202603313,0.08044,118960.0,118950.0,1.8007548]
[1753202603618,0.0703,118960.0,118950.0,1.8007548]
[1753202604312,0.0002,118970.0,118960.0,0.2816866]
[1753202604523,0.08673281,118980.0,118970.0,0.3471525]
[1753202604814,0.01723281,118980.0,118970.0,2.4650666]
[1753202605115,0.01723281,118980.0,118970.0,2.47341535]
[1753202605615,0.0031,118980.0,118970.0,2.47341535]
[1753202606418,0.0031,118980.0,118970.0,2.47241535]
[1753202607216,0.0031,118980.0,118970.0,2.47441535]
[1753202608215,0.0001,118980.0,118970.0,2.47741535]
[1753202610715,0.0002,118990.0,118980.0,0.3123084]
[1753202610915,0.0695,119000.0,118990.0,0.3468643]
[1753202611110,0.0695,119000.0,118990.0,2.1389184]
[1753202611111,0.44540597,119000.0,118990.0,2.1389184]
[1753202611819,0.36596597,119000.0,118990.0,2.15765822]
[1753202612120,0.36596597,119000.0,118990.0,2.15865822]
[1753202612622,0.16628,119010.0,119000.0,0.3119202]
[1753202612823,0.47588597,119010.0,119000.0,1.1889043]
[1753202613225,0.47588597,119010.0,119000.0,1.5497043]
[1753202613425,0.07664,119020.0,119010.0,0.246316]
[1753202613627,0.87250597,119020.0,119010.0,0.934716]
[1753202613819,0.51170597,119020.0,119010.0,0.934716]
[1753202614127,0.54218597,119020.0,119010.0,0.934716]
[1753202614420,0.47588597,119020.0,119010.0,1.273716]
[1753202614725,0.47588597,119020.0,119010.0,1.00177564]
[1753202614923,0.47588597,119020.0,119010.0,1.00081564]
[1753202615114,0.54218597,119020.0,119010.0,0.99981564]
[1753202615425,0.71013787,119020.0,119010.0,1.31981564]
[1753202615626,0.58482597,119020.0,119010.0,0.99981564]
[1753202615929,0.58482597,119020.0,119010.0,1.37981564]
[1753202616113,0.51852597,119020.0,119010.0,1.88282974]
[1753202616427,0.43526597,119020.0,119010.0,1.89122689]
[1753202616926,0.43526597,119020.0,119010.0,1.91005582]
[1753202617822,0.0693,119020.0,119010.0,1.91005582]
[1753202618041,0.44044,119030.0,119020.0,0.2447719]
[1753202618230,0.80620597,119030.0,119020.0,1.227136]
[1753202618430,0.80620597,119030.0,119020.0,1.815776]
[1753202618631,0.80620597,119030.0,119020.0,1.227136]
[1753202618939,0.80620597,119030.0,119020.0,1.815736]
[1753202619637,0.44540597,119030.0,119020.0,1.815736]
[1753202619940,0.44540597,119030.0,119020.0,1.3136819]
[1753202620136,0.47658597,119030.0,119020.0,0.9333919]
[1753202620335,0.54064597,119030.0,119020.0,1.2533919]
[1753202620531,0.58347597,119030.0,119020.0,1.2533919]
[1753202621534,0.42506,119040.0,119030.0,0.1679378]
[1753202621733,1.06457967,119040.0,119030.0,0.3437278]
[1753202622134,1.10740967,119040.0,119030.0,0.3437278]
[1753202622336,1.10740967,119040.0,119030.0,0.3112878]
[1753202622934,1.60946377,119040.0,119030.0,0.3132878]
[1753202623440,1.24866377,119040.0,119030.0,0.3132878]
[1753202623632,1.60946377,119040.0,119030.0,0.3132878]
[1753202623833,1.60946377,119040.0,119030.0,0.2809578]
[1753202624035,1.60946377,119040.0,119030.0,0.1709378]
[1753202624235,1.60946377,119040.0,119030.0,0.7587378]
[1753202625244,1.60946377,119040.0,119030.0,0.7577378]
[1753202625441,1.60946377,119040.0,119010.0,0.57254564]
[1753202625748,1.97029197,119020.0,119010.0,0.57254564]
[1753202626034,2.09633307,119020.0,119010.0,0.06709964]
[1753202626242,0.380686,119010.0,119000.0,0.8397166]
[1753202626435,1.60950607,119010.0,119000.0,0.8397166]
[1753202626938,1.61776424,119010.0,119000.0,0.8397166]
[1753202627239,1.60950607,119010.0,119000.0,0.8398366]
[1753202627737,1.60950607,119010.0,119000.0,0.97378357]
[1753202627939,1.60950607,119010.0,119000.0,0.82233617]
[1753202628235,1.60950607,119010.0,119000.0,0.82333617]
[1753202628441,1.60950607,119010.0,119000.0,0.82433617]
[1753202629036,1.60950607,119010.0,119000.0,0.23645617]
[1753202629641,1.60950607,119010.0,119000.0,0.06848697]
[1753202629942,1.60950607,119010.0,119000.0,0.82398707]
[1753202630241,1.60950607,119010.0,119000.0,0.23646707]
[1753202630736,1.10745197,119010.0,119000.0,0.23646707]
[1753202630938,1.60950607,119010.0,119000.0,0.23646707]
[1753202631539,1.10745197,119010.0,119000.0,0.23646707]
[1753202631740,1.60950607,119010.0,119000.0,0.23646707]
[1753202632444,1.66964476,119010.0,119000.0,0.23646707]
[1753202632636,1.60950607,119010.0,119000.0,0.23646707]
[1753202632840,1.60950607,119010.0,119000.0,0.30392707]
[1753202633444,1.60950607,119010.0,119000.0,0.23646707]
[1753202633940,0.3041696,119000.0,118990.0,0.0419955]
[1753202634139,1.69352967,119000.0,118990.0,0.0419955]
[1753202635246,1.73552767,119000.0,118990.0,0.2549741]
[1753202636843,2.95294931,119000.0,118990.0,0.005]
[1753202637047,2.45089521,119000.0,118990.0,0.1729943]
[1753202637445,1.94884111,119000.0,118990.0,0.1729943]
[1753202637647,2.45089521,119000.0,118990.0,0.1729943]
[1753202638048,2.45077521,119000.0,118990.0,0.1729943]
[1753202639041,2.45077521,119000.0,118990.0,0.005]
[1753202640552,2.45077521,119000.0,118990.0,0.1729943]
[1753202640743,2.45077521,119000.0,118990.0,0.005]
[1753202641148,0.3807143,118990.0,118980.0,0.01888512]
[1753202641348,1.53504795,118990.0,118980.0,0.01888512]
[1753202641550,1.53504795,118990.0,118980.0,0.18689352]
[1753202642349,1.53504795,118990.0,118980.0,0.19289352]
[1753202643045,0.7415143,118990.0,118980.0,0.34603352]
[1753202643348,0.7415143,118990.0,118980.0,0.36581352]
[1753202643750,1.53504795,118990.0,118980.0,0.34603352]
[1753202643950,1.53504795,118990.0,118980.0,0.31412352]
[1753202644149,1.53504795,118990.0,118980.0,0.30391352]
[1753202644553,1.53504795,118990.0,118980.0,0.23645352]
[1753202644554,1.16908198,118990.0,118980.0,0.23645352]
[1753202644852,1.53504795,118990.0,118980.0,0.78201352]
[1753202645747,1.16908198,118990.0,118980.0,0.93515352]
[1753202645953,1.10748027,118990.0,118980.0,1.32737352]
[1753202646448,1.10748027,118990.0,118980.0,1.35078997]
[1753202646753,1.10748027,118990.0,118980.0,1.01078997]
[1753202647049,1.10748027,118990.0,118980.0,0.97834997]
[1753202647050,1.53504795,118990.0,118980.0,0.97834997]
[1753202647451,1.53504795,118990.0,118980.0,0.95856997]
[1753202648250,1.53504795,118990.0,118980.0,0.90324352]
[1753202648748,1.53504795,118990.0,118980.0,0.90256352]
[1753202649155,1.60838251,118990.0,118980.0,0.93396352]
[1753202649355,1.60838251,118990.0,118980.0,0.95325352]
[1753202650755,1.60838251,118990.0,118980.0,0.93396352]
[1753202652059,1.10748027,118990.0,118980.0,0.93396352]
[1753202652356,1.60838251,118990.0,118980.0,0.95739402]
[1753202652754,1.24241654,118990.0,118980.0,0.04831562]
[1753202652958,1.60838251,118990.0,118980.0,0.02488512]
[1753202653259,1.69544027,118990.0,118980.0,0.32954514]
[1753202653454,2.19630251,118990.0,118980.0,0.36094514]
[1753202653654,1.10748027,118990.0,118980.0,0.36094514]
[1753202654056,1.60838251,118990.0,118980.0,0.36094514]
[1753202654763,1.10748027,118990.0,118980.0,0.36094514]
[1753202654961,1.60838251,118990.0,118980.0,0.36094514]
[1753202655157,1.10748027,118990.0,118980.0,0.36094514]
[1753202656262,1.60838251,118990.0,118980.0,0.36094514]
[1753202656562,1.60838251,118990.0,118980.0,0.32954514]
[1753202656857,0.89665597,118990.0,118980.0,0.39338514]
[1753202657160,0.10583,118990.0,118980.0,0.79267514]
[1753202657361,0.10583,118990.0,118980.0,1.29357738]
[1753202657561,0.04574,118990.0,118980.0,1.63093566]
[1753202657761,0.6167002,119000.0,118990.0,0.2503442]
[1753202657965,0.7062102,119000.0,118990.0,1.2966142]
[1753202658154,0.53823,119000.0,118990.0,1.2966142]
[1753202658557,0.58169,119000.0,118990.0,1.2966142]
[1753202658758,0.58169,119000.0,118990.0,0.9566142]
[1753202659061,0.58169,119000.0,118990.0,0.9576142]
[1753202659362,0.64182869,119000.0,118990.0,0.9576142]
[1753202660061,0.64182869,119000.0,118990.0,0.9586142]
[1753202660763,0.58169,119000.0,118990.0,1.2786142]
[1753202660958,0.46958,119000.0,118990.0,1.3086142]
[1753202661255,0.10878,119000.0,118990.0,1.80951644]